bitfinex/quotes_ETHUSD_20220215
["timestamp","ask_amount","ask_price","bid_price","bid_amount"]
[1644884161937,0.85239,2933.8,2933.7,0.00949151]
[1644884162337,0.85239,2933.8,2933.3,0.0149569]
[1644884162571,1.7047875,2933.7,2933.3,0.0149569]
[1644884162972,1.16764158,2933.6,2933.3,0.0149569]
[1644884163781,1.16764158,2933.6,2933.3,0.02390882]
[1644884164176,2.02007148,2933.6,2933.3,0.02390882]
[1644884164576,2.02007148,2933.6,2933.3,0.0149569]
[1644884164975,2.87252148,2933.6,2933.3,0.02390882]
[1644884165577,1.16764158,2933.6,2933.3,0.02390882]
[1644884165776,0.8523842,2933.8,2933.3,0.0149569]
[1644884165977,1.2348,2933.9,2933.3,0.0149569]
[1644884166225,3.4809,2934.2,2933.3,0.0149569]
[1644884166226,3.3106,2934.2,2933.3,0.02390882]
[1644884166632,3.3106,2934.2,2933.3,0.87612882]
[1644884166825,3.3106,2934.2,2933.6,1.02864732]
[1644884167025,1.03307853,2934.4,2933.7,0.00485167]
[1644884167624,1.88528413,2934.4,2933.7,0.00485167]
[1644884167825,1.88528413,2934.4,2933.6,0.00613428]
[1644884167826,1.03307853,2934.4,2933.6,0.00613428]
[1644884168027,1.12865994,2934.3,2933.6,0.00613428]
[1644884168227,1.70491,2934.2,2933.3,0.0149569]
[1644884168427,3.5095468,2934.1,2933.3,0.0149569]
[1644884168726,3.5095468,2934.1,2933.8,0.00613386]
[1644884168727,0.8524584,2934.0,2933.8,0.00613386]
[1644884168925,1.8524584,2934.0,2933.8,0.00613386]
[1644884169526,1.09081399,2933.7,2933.3,0.0149569]
[1644884169726,1.09081399,2933.7,2933.3,0.03949646]
[1644884170376,2.7048204,2934.0,2933.3,0.03949646]
[1644884170576,0.8524,2933.7,2933.3,0.03949646]
[1644884170776,0.8524,2933.7,2933.3,0.0149569]
[1644884170976,0.8524,2933.7,2933.4,0.00949562]
[1644884171576,1.7047915,2933.7,2933.4,0.00949562]
[1644884171781,1.7047915,2933.7,2933.3,0.0149569]
[1644884171977,0.85244,2933.6,2933.3,0.0149569]
[1644884172176,0.85244,2933.6,2933.4,0.00949552]
[1644884172580,0.85244,2933.6,2933.0,0.03798776]
[1644884172581,0.85244,2933.6,2933.0,0.01244018]
[1644884172777,1.7049,2933.6,2933.0,0.01244018]
[1644884172977,0.8524599,2933.4,2932.7,0.00485167]
[1644884173723,1.14600741,2933.3,2932.7,0.00485167]
[1644884173923,1.14600741,2933.3,2932.5,0.02293487]
[1644884174827,1.09965436,2932.8,2932.5,0.02293487]
[1644884175026,3.38304878,2932.7,2932.5,0.0180832]
[1644884175225,1.09965436,2932.8,2932.5,0.0180832]
[1644884175626,1.95231696,2932.8,2932.5,0.0180832]
[1644884175825,4.74227552,2933.1,2932.5,0.0180832]
[1644884175826,3.74566531,2933.1,2932.5,0.0180832]
[1644884176327,0.00338979,2933.1,2932.5,0.0180832]
[1644884176729,1.1796,2933.3,2932.5,0.0180832]
[1644884176931,1.1796,2933.3,2932.7,0.00949708]
[1644884176932,0.00949548,2933.1,2932.7,0.00949708]
[1644884177980,0.8525704,2933.1,2932.5,0.0180832]
[1644884178174,0.8525704,2933.1,2932.8,0.00949687]
[1644884178175,0.85269,2932.9,2932.8,0.00949687]
[1644884178374,2.88709773,2932.9,2932.8,0.00949687]
[1644884178673,1.85269,2932.9,2932.8,0.00949687]
[1644884178875,0.85269,2932.9,2932.8,0.00949687]
[1644884179075,0.85269,2932.9,2932.5,0.0180832]
[1644884179274,0.8526915,2932.8,2932.5,0.0180832]
[1644884179479,0.8526915,2932.8,2932.7,0.00949698]
[1644884180076,1.78744577,2932.8,2932.7,0.00949698]
[1644884180277,1.78744577,2932.8,2932.5,0.0180832]
[1644884180479,0.8528,2932.7,2932.5,0.0180832]
[1644884180780,0.8528,2932.7,2932.6,0.00949718]
[1644884180781,1.8528,2932.7,2932.6,0.00949718]
[1644884180976,2.0231,2932.7,2932.6,0.00949718]
[1644884181234,2.3231,2932.7,2932.6,0.00949718]
[1644884181432,2.3231,2932.7,2932.5,0.0180832]
[1644884181635,3.1758068,2932.7,2932.5,0.0180832]
[1644884181834,3.1758068,2932.7,2931.3,5.52134]
[1644884181835,5.243,2932.6,2931.8,0.00485167]
[1644884182039,5.0,2932.4,2931.6,0.00485167]
[1644884182233,1.64312,2932.3,2931.2,0.00485167]
[1644884182436,0.9605,2932.3,2931.2,0.00485167]
[1644884182634,0.96479111,2931.3,2931.2,0.00485167]
[1644884182837,0.8531586,2932.1,2931.2,0.00485167]
[1644884182838,0.49,2931.7,2931.2,0.00485167]
[1644884183035,1.7063135,2932.0,2931.2,0.00485167]
[1644884183234,2.6901,2932.1,2931.2,0.00485167]
[1644884183235,2.2001,2932.1,2931.2,0.00485167]
[1644884183434,1.2001,2932.1,2931.2,0.00485167]
[1644884183636,2.5595068,2931.9,2931.2,0.00485167]
[1644884183837,0.99135383,2931.6,2931.2,0.00485167]
[1644884184035,0.85313,2931.6,2931.2,0.00485167]
[1644884184236,1.3,2931.8,2931.2,0.00485167]
[1644884184237,1.0,2931.8,2931.2,0.00485167]
[1644884184436,4.20607,2932.1,2931.2,0.00485167]
[1644884184640,1.8529329,2932.0,2931.2,0.00485167]
[1644884185074,0.3,2931.9,2931.2,0.00485167]
[1644884185476,0.3,2931.9,2931.5,0.00606442]
[1644884185877,1.15296,2931.9,2931.5,0.00606442]
[1644884186278,2.15296,2931.9,2931.2,0.00485167]
[1644884186578,2.15296,2931.9,2931.6,0.00946192]
[1644884186779,2.1529872,2931.9,2931.6,0.00946192]
[1644884187181,1.1529872,2931.9,2931.6,0.00946192]
[1644884187378,2.1529872,2931.9,2931.6,0.00946192]
[1644884187578,1.1529872,2931.9,2931.2,0.00485167]
[1644884187777,2.1529872,2931.9,2931.6,0.00946182]
[1644884188579,0.8529872,2931.9,2931.6,0.00946182]
[1644884188839,0.8529872,2931.9,2931.2,0.00485167]
[1644884189023,0.8529872,2931.9,2931.6,0.00946182]
[1644884189423,1.7059472,2931.9,2931.6,0.00946182]
[1644884189826,1.7059472,2931.9,2931.2,0.00485167]
[1644884190224,0.8529872,2931.9,2931.6,0.00946182]
[1644884190424,2.5590672,2931.9,2931.6,0.00946182]
[1644884190725,0.85299,2931.8,2931.6,0.00946182]
[1644884191124,0.85299,2931.8,2931.2,0.00485167]
[1644884191326,1.69700063,2931.7,2931.6,0.00946192]
[1644884192329,1.69700063,2931.7,2931.2,0.00485167]
[1644884192575,1.69700063,2931.7,2931.5,0.00946202]
[1644884193176,2.55001063,2931.7,2931.5,0.00946202]
[1644884193575,2.55001063,2931.7,2931.2,0.00485167]
[1644884193776,2.55001063,2931.7,2931.5,0.00946213]
[1644884193777,0.3,2931.6,2931.5,0.00946213]
[1644884193976,1.3,2931.6,2931.5,0.00946213]
[1644884194579,2.15305,2931.6,2931.5,0.00946213]
[1644884194782,0.853089,2931.5,2931.2,0.00485167]
[1644884194983,0.853089,2931.5,2931.4,0.00946223]
[1644884195978,0.853089,2931.5,2931.2,0.00485167]
[1644884196227,0.853089,2931.5,2931.3,0.00946244]
[1644884197127,1.706149,2931.5,2931.2,0.00485167]
[1644884197328,0.3,2931.6,2931.3,0.00946254]
[1644884197729,1.14401363,2931.7,2931.3,0.00946254]
[1644884197929,3.9,2931.6,2931.0,9.75514784]
[1644884198136,0.49,2931.5,2931.0,9.75514784]
[1644884198331,1.79,2931.5,2931.0,9.75514784]
[1644884198535,2.6432987,2931.5,2931.0,9.75514784]
[1644884198730,1.6432987,2931.5,2931.0,9.75514784]
[1644884198930,1.0,2931.4,2931.0,9.75514784]
[1644884199130,1.34325,2931.4,2931.0,9.75514784]
[1644884199332,0.85325,2931.3,2931.0,9.75514784]
[1644884199631,0.85325,2931.2,2931.0,9.75514784]
[1644884199830,2.0064954,2931.2,2931.0,9.75514784]
[1644884200276,3.0064954,2931.2,2931.0,9.75514784]
[1644884200478,1.12675827,2931.1,2931.0,9.75514784]
[1644884200777,1.98002827,2931.1,2931.0,9.75514784]
[1644884200975,1.98002827,2931.1,2931.0,9.764611]
[1644884201176,1.98002827,2931.1,2931.0,5.67766755]
[1644884201382,1.98002827,2931.1,2931.0,4.88549606]
[1644884201383,2.98002827,2931.1,2931.0,4.88549606]
[1644884201775,1.85327,2931.1,2931.0,4.88549606]
[1644884201975,1.85327,2931.1,2931.0,4.8760329]
[1644884202377,3.85,2931.0,2930.3,0.05005]
[1644884202683,0.92298747,2930.7,2930.3,0.05005]
[1644884202877,2.41298747,2930.7,2930.3,0.05005]
[1644884203177,2.71298747,2930.7,2930.3,0.05005]
[1644884203577,0.85349,2930.6,2930.3,0.05005]
[1644884203829,0.8535,2930.5,2930.3,0.05005]
[1644884204329,2.1535,2930.5,2930.3,0.05005]
[1644884204631,3.47526917,2930.4,2930.3,0.05005]
[1644884205028,4.47526917,2930.4,2930.3,0.05005]
[1644884208076,4.47526917,2930.4,2930.3,5e-05]
[1644884208275,1.0,2930.4,2930.3,5e-05]
[1644884208478,8.53332,2930.4,2930.3,5e-05]
[1644884208678,14.65832,2930.4,2930.2,0.00945724]
[1644884208878,7.2956,2930.3,2930.2,0.00945724]
[1644884209077,7.2956,2930.3,2929.3,0.00356026]
[1644884209078,3.95,2930.2,2929.3,0.00356026]
[1644884209277,8.7163129,2930.1,2929.3,0.00356026]
[1644884209679,0.3,2930.0,2929.3,0.00356026]
[1644884209979,0.49,2929.9,2929.3,0.00356026]
[1644884210179,0.85358,2929.8,2929.3,0.00356026]
[1644884210384,1.85358,2929.8,2929.3,0.00356026]
[1644884210582,1.85358,2929.8,2929.5,0.0059045]
[1644884210785,1.0,2929.8,2929.5,0.0059045]
[1644884211428,0.85359,2929.7,2929.5,0.0059045]
[1644884211628,0.8536042,2929.8,2929.3,0.00356026]
[1644884211825,0.8536042,2929.8,2929.5,0.0059044]
[1644884212027,5.0036,2930.2,2929.5,0.0059044]
[1644884212230,1.2144,2930.4,2929.5,0.0059044]
[1644884212427,1.2144,2930.4,2929.5,3.61430617]
[1644884212726,1.2144,2930.4,2929.5,4.46176177]
[1644884212931,1.2144,2930.4,2929.7,0.87550644]
[1644884213129,0.00934326,2930.1,2929.7,0.00934467]
[1644884213330,0.86281326,2930.1,2929.7,0.00934467]
[1644884213729,0.00934326,2930.1,2929.7,0.00934467]
[1644884213930,5.332,2930.8,2929.6,0.0047836]
[1644884214130,1.7068287,2930.5,2929.6,1.16855918]
[1644884214330,0.00891973,2930.0,2929.7,0.01370453]
[1644884214978,0.00891973,2930.0,2929.7,4.70343077]
[1644884215176,1.1852,2930.8,2929.7,4.69450984]
[1644884215380,2.03847,2930.8,2929.8,0.0047836]
[1644884215584,0.00891982,2930.0,2929.8,0.0047836]
[1644884215777,0.00891982,2930.0,2929.7,0.00892087]
[1644884216277,0.00891982,2930.0,2929.9,0.98902968]
[1644884216480,1.5436774,2930.9,2929.9,4.48723296]
[1644884216679,1.5436774,2930.9,2930.1,0.7677192]
[1644884216878,1.5436774,2930.9,2930.2,3.70272477]
[1644884217080,1.5436774,2930.9,2930.4,1.70605]
[1644884217278,1.5436774,2930.9,2930.6,0.85303]
[1644884217478,1.5436774,2930.9,2930.7,0.0047836]
[1644884217879,1.55250805,2930.9,2930.7,0.0047836]
[1644884218725,1.5436774,2930.9,2930.7,0.0047836]
[1644884219125,1.55250796,2930.9,2930.7,0.0047836]
[1644884219327,1.55250796,2930.9,2930.4,0.0047836]
[1644884219725,1.55250796,2930.9,2930.5,0.85305]
[1644884219927,1.5436774,2930.9,2930.6,0.0047836]
[1644884220328,0.00845169,2930.8,2930.6,0.0047836]
[1644884220525,0.00845169,2930.8,2930.4,3.2159373]
[1644884220526,0.00845169,2930.8,2930.4,3.2207209]
[1644884220732,0.00845169,2930.8,2930.4,0.0047836]
[1644884220926,0.00845169,2930.8,2930.3,0.0047836]
[1644884221127,1.5436774,2930.9,2930.3,0.0047836]
[1644884221327,1.5436774,2930.9,2930.3,1.87163246]
[1644884221527,0.00845765,2930.7,2930.3,1.01850246]
[1644884222475,1.5436774,2930.9,2930.3,1.01850246]
[1644884222676,0.00845783,2930.6,2930.3,1.01850246]
[1644884222977,0.00845783,2930.6,2930.3,0.0047836]
[1644884223575,1.5436774,2930.9,2930.3,0.0047836]
[1644884223776,0.00883707,2930.6,2930.3,0.0047836]
[1644884224777,1.5436774,2930.9,2930.3,0.0047836]
[1644884224979,0.00886838,2930.6,2930.3,0.0047836]
[1644884226078,1.5436774,2930.9,2930.3,0.0047836]
[1644884226333,0.00346843,2930.6,2930.3,0.0047836]
[1644884226531,0.00346843,2930.6,2930.1,0.0047836]
[1644884226736,0.00346843,2930.6,2929.9,0.0047836]
[1644884226937,0.00346843,2930.6,2929.7,0.0047836]
[1644884227136,1.8436774,2930.9,2929.7,1.12600586]
[1644884227333,1.8436774,2930.9,2929.5,0.85986461]
[1644884227334,0.98190905,2930.8,2929.5,0.85986461]
[1644884227534,0.00346843,2930.4,2929.6,0.85335]
[1644884227934,0.8533324,2930.3,2929.6,0.85335]
[1644884228336,0.8533324,2930.3,2929.7,0.85332]
[1644884228539,2.5601419,2930.7,2929.8,0.85331]
[1644884228735,0.00944305,2930.1,2929.8,1.95032243]
[1644884228935,0.00944305,2930.1,2929.8,0.85331]
[1644884229136,0.00944305,2930.1,2929.7,0.00944447]
[1644884229736,0.79,2930.6,2929.3,0.86342487]
[1644884229983,0.79,2930.6,2929.7,0.00944441]
[1644884229984,0.00944315,2930.0,2929.7,0.00944441]
[1644884230783,1.7067536,2930.5,2929.6,1.07942353]
[1644884230985,0.00346843,2930.0,2929.6,1.93277353]
[1644884231192,0.00346843,2930.0,2929.6,2.79263814]
[1644884231391,0.00346843,2930.0,2929.8,0.85986461]
[1644884231587,0.00346843,2930.0,2929.9,0.49]
[1644884231985,3.5,2930.8,2930.1,1.84724822]
[1644884232187,2.3968374,2930.9,2930.2,0.85314]
[1644884232387,3.5,2930.8,2930.1,2.19627]
[1644884232587,3.5,2930.8,2929.7,0.85986461]
[1644884232786,1.0,2930.7,2929.5,0.85986461]
[1644884233185,3.6706,2930.8,2929.5,0.85986461]
[1644884233186,3.6706,2930.8,2929.7,0.85329]
[1644884233387,3.6706,2930.8,2929.8,0.85986461]
[1644884233388,4.523794,2930.8,2929.8,0.85986461]
[1644884233585,1.023794,2930.8,2929.8,1.7063701]
[1644884234129,0.1706,2930.8,2929.8,1.7063701]
[1644884234430,1.0238185,2930.8,2929.9,0.85318]
[1644884234636,1.0238185,2930.8,2930.2,0.8532]
[1644884235029,0.1706,2930.8,2930.2,0.8532]
[1644884235430,0.1706,2930.8,2930.3,0.85316]
[1644884235729,1.5436774,2930.9,2930.3,1.70619]
[1644884235932,1.5436774,2930.9,2930.3,0.85303]
[1644884236133,1.5436774,2930.9,2930.4,0.85307]
[1644884236335,1.5436774,2930.9,2930.3,1.14308314]
[1644884236532,2.3968328,2930.9,2930.1,0.49]
[1644884236731,1.5436774,2930.9,2930.1,0.85323]
[1644884237333,1.5436774,2930.9,2930.2,0.85315]
[1644884237777,1.5436774,2930.9,2930.0,0.85986461]
[1644884237778,2.3968215,2930.9,2930.0,0.85986461]
[1644884237980,1.5436774,2930.9,2930.2,0.8532]
[1644884238177,1.7065301,2930.8,2929.8,2.56629461]
[1644884238379,1.7065301,2930.8,2929.9,1.71311461]
[1644884238777,0.8531882,2930.8,2930.0,0.86669541]
[1644884238983,1.5436774,2930.9,2930.0,0.86669541]
[1644884239180,1.5436774,2930.9,2930.2,0.85313]
[1644884239379,1.5436774,2930.9,2930.4,0.8531]
[1644884240179,1.5436774,2930.9,2930.4,1.70617]
[1644884240380,1.5436774,2930.9,2930.4,1.70618]
[1644884241426,1.5436774,2930.9,2930.5,0.85308]
[1644884241631,1.5436774,2930.9,2930.6,0.85308]
[1644884241825,1.5436774,2930.9,2930.3,1.70615]
[1644884242026,1.5436774,2930.9,2930.2,0.85986461]
[1644884242927,1.5436774,2930.9,2930.3,0.00473464]
[1644884243126,1.5436774,2930.9,2930.5,1.04428944]
[1644884243326,1.5436774,2930.9,2930.6,0.85782464]
[1644884243527,1.5436774,2930.9,2930.6,0.00473464]
[1644884244125,1.5436774,2930.9,2930.4,0.00473464]
[1644884244727,1.5436774,2930.9,2930.4,1.71097464]
[1644884245183,1.5436774,2930.9,2930.4,0.00473464]
[1644884245781,2.3969274,2930.9,2930.4,0.00473464]
[1644884245981,2.3969274,2930.9,2930.1,0.85986461]
[1644884246179,2.3969274,2930.9,2930.2,0.00473464]
[1644884246381,3.250087,2930.9,2930.2,0.00473464]
[1644884246578,1.7064586,2930.8,2930.2,0.00473464]
[1644884247582,2.5596879,2930.8,2930.2,0.85794464]
[1644884247780,2.5596879,2930.8,2930.3,0.00473464]
[1644884248827,2.5596879,2930.8,2930.4,0.85312]
[1644884249028,2.5596879,2930.8,2930.5,0.00473464]
[1644884249430,0.8532293,2930.8,2930.5,0.00473464]
[1644884249633,0.8532293,2930.8,2930.3,0.00473464]
[1644884250229,0.8532293,2930.8,2930.3,0.85788464]
[1644884250431,0.8532293,2930.8,2930.3,0.00473464]
[1644884250432,4.43573274,2930.8,2930.3,0.00473464]
[1644884250634,3.15393461,2930.7,2930.3,0.00473464]
[1644884250832,5.11368245,2930.6,2929.9,0.00473464]
[1644884251031,3.96639244,2930.6,2929.9,0.00473464]
[1644884251633,0.85335,2930.5,2929.7,0.85986461]
[1644884251833,0.8533517,2930.3,2929.9,0.00473464]
[1644884252682,0.8533517,2930.3,2929.8,0.8533]
[1644884252881,1.1533517,2930.3,2929.9,0.00473464]
[1644884254083,1.1533517,2930.3,2929.9,0.86459925]
[1644884254483,1.1533517,2930.3,2929.9,1.71785925]
[1644884255689,1.1533517,2930.3,2930.1,0.85986461]
[1644884255885,1.1533517,2930.3,2930.1,0.86459925]
[1644884256084,0.8533517,2930.3,2930.2,0.85986461]
[1644884256353,0.8533517,2930.3,2930.2,1.0028306]
[1644884256750,0.8533517,2930.3,2930.2,1.86882326]
[1644884257051,0.8533517,2930.3,2930.2,1.0028306]
[1644884257456,0.8533517,2930.3,2930.2,1.86885067]
[1644884258954,0.8533517,2930.3,2930.2,0.86602007]
[1644884259154,0.8533517,2930.3,2930.2,0.87075519]
[1644884259354,1.1533517,2930.3,2930.2,0.00473512]
[1644884259554,1.1533517,2930.3,2930.1,0.86602007]
[1644884259756,1.1533517,2930.3,2930.1,0.87075519]
[1644884259985,1.1533517,2930.3,2930.1,0.00473512]
[1644884260180,1.1533517,2930.3,2930.0,0.86602007]
[1644884260382,1.1533517,2930.3,2930.1,0.00473512]
[1644884260981,1.1533517,2930.3,2930.1,0.87075519]
[1644884261180,1.1533517,2930.3,2930.1,0.00473512]
[1644884261582,1.1533517,2930.3,2930.1,0.87075519]
[1644884261980,1.1533517,2930.3,2930.1,4.37075519]
[1644884262181,1.1533517,2930.3,2930.1,0.00473512]
[1644884262682,1.1627842,2930.3,2930.1,0.00473512]
[1644884263283,1.1627842,2930.3,2929.8,0.86602007]
[1644884263482,1.1627842,2930.3,2929.9,0.00473512]
[1644884263735,0.853371,2930.2,2929.9,0.00473512]
[1644884263937,1.153371,2930.2,2929.9,0.00473512]
[1644884264134,2.0066114,2930.2,2929.9,0.00473512]
[1644884264335,1.7066114,2930.2,2929.9,0.00473512]
[1644884264536,0.3,2930.1,2929.9,0.00473512]
[1644884264737,1.1533057,2930.1,2930.0,0.86602007]
[1644884264935,1.7066114,2930.2,2930.0,0.00473512]
[1644884264936,1.71604421,2930.2,2930.0,0.00473512]
[1644884265142,1.71604421,2930.2,2930.0,1.71923007]
[1644884265336,1.71604421,2930.2,2930.0,1.72396519]
[1644884265735,2.56924191,2930.2,2930.0,1.72396519]
[1644884265936,2.5598091,2930.2,2930.0,1.72396519]
[1644884266239,2.5692418,2930.2,2930.0,1.72396519]
[1644884267037,2.5598091,2930.2,2930.0,1.72396519]
[1644884267483,2.56913112,2930.2,2930.1,0.86602007]
[1644884268284,2.5598091,2930.2,2930.1,0.86602007]
[1644884270387,2.55868864,2930.2,2930.1,0.86602007]
[1644884270784,2.55868864,2930.2,2930.1,1.77632969]
[1644884271728,0.8531977,2930.2,2930.1,0.91030962]
[1644884271932,2.5598266,2930.6,2930.1,0.91030962]
[1644884271933,1.51765796,2930.6,2930.2,4.8031]
[1644884272128,1.5436774,2930.9,2930.5,0.86615505]
[1644884272330,1.7058977,2930.8,2930.6,0.49]
[1644884273329,1.7058977,2930.8,2930.6,3.21674301]
[1644884273731,0.8529464,2930.8,2930.6,3.21674301]
[1644884273928,0.8529464,2930.8,2930.6,4.93582806]
[1644884274528,0.86237788,2930.8,2930.6,4.93582806]
[1644884275183,0.86237788,2930.8,2930.6,4.44582806]
[1644884275490,9.4388,2931.6,2930.6,4.44582806]
[1644884275491,0.25,2931.7,2930.7,3.95]
[1644884275693,5.2746137,2932.1,2931.1,0.85278]
[1644884275694,1.44686212,2931.6,2931.1,0.85278]
[1644884275883,3.0363,2932.1,2931.2,0.49]
[1644884275884,3.5,2932.0,2931.2,0.49]
[1644884276085,2.29947667,2931.9,2931.2,0.49]
[1644884276384,1.44677037,2931.8,2931.7,0.84512153]
[1644884276782,2.4411,2932.4,2931.7,0.84512153]
[1644884276783,2.4411,2932.4,2931.7,1.69781153]
[1644884276984,1.44659045,2932.3,2931.7,1.69781153]
[1644884277384,1.44659045,2932.2,2931.7,1.69781153]
[1644884277684,1.44659045,2932.1,2931.7,1.69781153]
[1644884277885,6.36478991,2932.8,2931.7,1.69781153]
[1644884277886,1.44659045,2932.0,2931.7,1.69781153]
[1644884278087,6.36478991,2932.8,2931.7,1.69781153]
[1644884278088,2.5582106,2932.7,2931.7,0.84512153]
[1644884278284,1.44662646,2932.6,2931.7,0.84512153]
[1644884278935,0.8526858,2932.1,2931.7,1.69782153]
[1644884279132,1.44662646,2932.0,2931.7,1.69782153]
[1644884279533,1.44662646,2932.0,2931.7,2.18782153]
[1644884279930,1.44662646,2932.0,2931.7,3.04047153]
[1644884280133,0.00943596,2932.3,2931.8,0.85257]
[1644884280330,1.44660493,2932.2,2931.9,1.05650864]
[1644884280531,1.44660493,2932.2,2931.9,4.05916536]
[1644884280738,5.549,2932.8,2931.9,2.76159864]
[1644884280739,0.00943657,2932.0,2931.9,2.76159864]
[1644884281532,0.8525644,2932.4,2931.9,2.76159864]
[1644884281732,0.00943637,2932.1,2932.0,0.49]
[1644884282584,1.45605011,2932.1,2932.0,0.49]
[1644884282885,1.44661374,2932.1,2932.0,0.49]
[1644884283083,0.00943616,2932.2,2932.0,0.49]
[1644884283287,1.44661374,2932.1,2932.0,0.49]
[1644884283684,0.00943616,2932.2,2932.0,0.49]
[1644884283988,7.04660045,2932.8,2932.0,0.49]
[1644884283989,1.2079,2932.8,2932.0,0.49]
[1644884284184,0.00943606,2932.2,2932.0,0.49]
[1644884284594,3.606e-05,2932.2,2932.0,0.49]
[1644884284786,3.606e-05,2932.2,2932.1,5.1296]
[1644884284985,3.606e-05,2932.2,2932.1,15.62157534]
[1644884285185,3.606e-05,2932.2,2932.1,7.59874]
[1644884285386,4.77691338,2933.2,2932.1,7.615]
[1644884285587,2.29886995,2933.1,2932.1,0.49]
[1644884285791,4.89609071,2933.0,2932.5,1.12330995]
[1644884285986,1.44624995,2932.9,2932.5,1.12330995]
[1644884286234,1.44624995,2932.8,2932.5,1.12330995]
[1644884286434,0.85262,2933.1,2932.1,0.49]
[1644884286635,1.44643037,2933.0,2932.1,0.49]
[1644884286835,1.7051587,2932.8,2932.1,0.49]
[1644884287035,0.8526189,2932.7,2932.1,0.49]
[1644884287835,0.8526189,2932.7,2931.6,4.97527]
[1644884287836,0.00943545,2932.5,2931.6,3.1404]
[1644884288036,0.85279,2932.3,2931.6,6.6404]
[1644884288340,1.7055799,2932.4,2931.3,0.04719687]
[1644884288341,4.84483531,2932.2,2931.3,0.04719687]
[1644884288539,1.44674295,2932.1,2931.3,0.04719687]
[1644884288735,3.71890329,2932.5,2931.7,1.17265502]
[1644884288935,1.44675601,2932.4,2931.7,1.17265502]
[1644884289136,0.852874,2932.1,2931.7,1.17265502]
[1644884289536,1.705748,2932.2,2931.3,0.00943854]
[1644884289735,3.27735008,2932.1,2931.3,0.00943854]
[1644884290003,3.27735008,2932.1,2931.0,3.47769]
[1644884290004,4.15093441,2932.1,2931.0,3.47769]
[1644884290192,4.15093441,2932.1,2931.3,0.00943854]
[1644884290193,4.16713781,2932.1,2931.3,0.00943854]
[1644884290394,0.8529,2932.1,2931.3,0.00943854]
[1644884290593,4.10562925,2932.1,2931.3,0.00943854]
[1644884290793,0.8529,2932.1,2931.3,0.93437121]
[1644884291000,1.7057565,2931.9,2931.3,0.93437121]
[1644884291193,1.7057565,2931.9,2931.3,0.92493267]
[1644884291396,1.7057565,2931.9,2931.3,0.93437115]
[1644884291995,1.7057565,2931.9,2931.3,0.00943848]
[1644884292194,0.8528783,2931.8,2931.3,0.00943848]
[1644884292394,0.8528783,2931.8,2931.0,1.70559]
[1644884292595,4.15522383,2931.8,2930.7,5.99169]
[1644884292794,4.15522383,2931.8,2931.3,0.00889447]
[1644884292996,5.00826383,2931.8,2931.3,0.00889447]
[1644884293599,5.00826383,2931.8,2930.8,1.12275039]
[1644884293831,0.8529669,2931.5,2931.3,0.00889442]
[1644884294035,3.28110786,2931.4,2931.3,0.00889442]
[1644884294233,2.1121669,2931.5,2931.3,0.00889442]
[1644884294433,3.1121669,2931.5,2931.3,0.00889442]
[1644884294634,0.00924414,2931.2,2931.0,0.03558236]
[1644884294832,0.00924414,2931.2,2930.0,3.1736]
[1644884295033,0.00924414,2931.2,2930.1,1.04026952]
[1644884295236,0.85323,2931.1,2930.1,1.04026952]
[1644884295836,0.85328,2931.0,2930.1,1.04026952]
[1644884296240,3.55262487,2930.9,2930.5,0.0059951]
[1644884296438,4.25493537,2930.9,2930.5,0.0059951]
[1644884297238,4.25493537,2930.9,2929.3,4.37445043]
[1644884297239,1.09689,2930.5,2929.5,1.17285721]
[1644884297486,0.8533808,2930.2,2930.1,0.03776512]
[1644884298484,0.8533808,2930.2,2929.6,0.00473512]
[1644884298685,0.8533808,2930.2,2930.0,0.00944099]
[1644884299786,0.8533808,2930.2,2930.0,0.00944109]
[1644884300188,3.25849436,2930.1,2930.0,0.00944109]
[1644884300789,3.25849436,2930.1,2929.3,0.00356026]
[1644884300987,0.853521,2930.0,2929.3,0.00356026]
[1644884301233,3.42216981,2929.9,2929.6,1.10239453]
[1644884301440,0.1706,2930.5,2929.7,0.00473512]
[1644884301441,4.12068148,2930.0,2929.7,0.00473512]
[1644884301736,3.47894385,2930.1,2929.7,0.00473512]
[1644884301933,3.59563815,2930.3,2929.7,0.00473512]
[1644884302334,1.70707,2930.4,2929.7,0.00473512]
[1644884302335,2.5603842,2930.2,2930.1,0.90753351]
[1644884302536,1.0,2930.6,2929.7,0.0094416]
[1644884302537,0.1706,2930.6,2929.7,0.0094416]
[1644884302736,1.2317,2930.7,2929.7,0.0094416]
[1644884302935,3.60117285,2931.1,2929.7,0.0094416]
[1644884303336,3.60117285,2931.1,2929.6,0.00473512]
[1644884303535,1.7065394,2930.6,2930.1,0.00944089]
[1644884304334,1.7065394,2930.6,2929.6,0.00473512]
[1644884304534,6.93120457,2930.5,2929.6,0.00473512]
[1644884304734,6.93120457,2930.5,2930.2,0.00944058]
[1644884304735,0.8535016,2930.3,2930.2,0.00944058]
[1644884304987,4.32504631,2930.3,2930.2,0.00944058]
[1644884305387,5.32504631,2930.3,2930.2,0.00944058]
[1644884305589,5.32504631,2930.3,2929.4,0.9901487]
[1644884305789,5.32504631,2930.3,2929.5,0.00473512]
[1644884305790,1.0,2930.2,2929.5,0.00473512]
[1644884305991,1.0,2930.2,2930.1,0.00944078]
[1644884305992,2.7068713,2930.2,2930.1,0.00944078]
[1644884306189,1.7068713,2930.2,2930.1,0.00944078]
[1644884306890,0.8533872,2930.0,2929.5,0.00473512]
[1644884307089,0.8533872,2930.0,2929.6,0.03776962]
[1644884307890,3.23520092,2929.9,2929.6,0.03776962]
[1644884308089,3.23520092,2929.9,2929.3,0.00356026]
[1644884308289,0.8535826,2929.8,2929.7,0.0094417]
[1644884308731,1.1535826,2929.8,2929.7,0.0094417]
[1644884309131,1.1535826,2929.8,2929.3,0.00829538]
[1644884309535,1.1535826,2929.8,2929.6,0.00944181]
[1644884309536,0.3,2929.7,2929.6,0.00944181]
[1644884310332,0.3,2929.7,2929.2,0.96790752]
[1644884310333,0.8534457,2929.6,2929.2,0.96790752]
[1644884310530,0.8534457,2929.6,2929.2,0.93013463]
[1644884310732,1.1534457,2929.6,2929.2,0.93013463]
[1644884311131,1.1534457,2929.6,2929.2,0.00712052]
[1644884311936,0.3,2929.6,2929.3,0.00599088]
[1644884312133,0.3,2929.7,2929.4,1.11760591]
[1644884312333,2.0071651,2929.9,2929.4,1.11760591]
[1644884312789,2.0071651,2929.9,2929.2,0.00712052]
[1644884312992,0.8533848,2929.8,2929.2,0.00712052]
[1644884313191,0.8533848,2929.8,2929.5,0.00944217]
[1644884313390,0.3,2929.7,2929.5,0.00944217]
[1644884313992,0.3,2929.7,2929.2,1.08250485]
[1644884314190,1.15347,2929.7,2929.2,1.08250485]
[1644884314391,1.15347,2929.7,2929.5,0.00944211]